fUST/lending_fUST_20250531
["ID","MTS","AMOUNT","RATE_DAILY","PERIOD"]
[363272504,1748656251761,-160.0,0.00020763,10]
[363272506,1748656251770,-307.734421,0.00020767,2]
[363272508,1748656251780,-4119.264382,0.00020788,15]
[363272510,1748656251789,-4031.54733515,0.00020797,4]
[363272512,1748656251797,-432.24,0.0002082,2]
[363272514,1748656251806,-982.9,0.0002082,2]
[363272516,1748656251815,-430.0,0.0002082,2]
[363272518,1748656251825,-430.0,0.0002082,2]
[363272519,1748656251834,-2271.2,0.0002082,2]
[363272522,1748656251843,-804.95,0.0002082,2]
[363272523,1748656251852,-1744.19,0.00020821,2]
[363272525,1748656251861,-1425.95,0.00020821,2]
[363272527,1748656251870,-529.54,0.00020821,2]
[363272529,1748656251880,-612.2,0.00020821,2]
[363272531,1748656251889,-956.47,0.00020821,2]
[363272533,1748656251899,-862.38,0.00020821,2]
[363272535,1748656251908,-495.01,0.00020821,2]
[363272537,1748656251918,-430.0,0.00020821,2]
[363272539,1748656251926,-430.0,0.00020821,2]
[363272541,1748656251937,-430.0,0.00020821,2]
[363272543,1748656251949,-1528.02,0.00020821,2]
[363272545,1748656251958,-2554.19,0.00020821,2]
[363272547,1748656251968,-1699.58,0.00020821,2]
[363272549,1748656251977,-561.62,0.00020821,2]
[363272551,1748656251989,-948.43,0.00020821,2]
[363272553,1748656252000,-795.03,0.00020821,2]
[363272555,1748656252010,-658.45,0.00020821,2]
[363272557,1748656252020,-1192.93,0.00020821,2]
[363272559,1748656252030,-733.23,0.00020821,2]
[363272562,1748656252039,-962.85,0.00020821,2]
[363272564,1748656252049,-162.6182772,0.00020877,2]
[363272566,1748656252059,-2710.81194148,0.00020892,30]
[363272568,1748656252068,-1316.7723605,0.00020917,2]
[363272570,1748656252077,-160.0,0.0002094,11]
[363272571,1748656252086,-206.0,0.0002094,2]
[363272573,1748656252095,-153.841363,0.00020969,4]
[363272575,1748656252104,-1615.0,0.00021,2]
[363272577,1748656252114,-1615.0,0.00021,2]
[363272579,1748656252123,-1615.0,0.00021,2]
[363272581,1748656252132,-1615.0,0.00021,2]
[363272583,1748656252141,-1615.0,0.00021,2]
[363272585,1748656252151,-1615.0,0.00021,2]
[363272587,1748656252160,-1615.0,0.00021,2]
[363272589,1748656252170,-1615.0,0.00021,2]
[363272591,1748656252179,-1615.0,0.00021,2]
[363272593,1748656252188,-1615.0,0.00021,2]
[363272595,1748656252199,-1502.7148499,0.00021,10]
[363272597,1748656252208,-200.38581031,0.00021,2]
[363272599,1748656252219,-10000.0,0.00021,5]
[363272601,1748656252228,-10000.0,0.00021,5]
[363272603,1748656252237,-10000.0,0.00021,5]
[363272605,1748656252246,-3013.082,0.00021,5]
[363272607,1748656252255,-500.0,0.00021,2]
[363272609,1748656252264,-10000.0,0.00021,5]
[363272611,1748656252272,-31745.91596254,0.00021,2]
[363272613,1748656252281,-11949.37908833,0.00021,2]
[363272636,1748656252533,-35290.099016,0.00021,2]
[363272637,1748656252544,-11064.75818143,0.00021,2]
[363272638,1748656252645,-3105.26882111,0.00021,2]
[363272639,1748656252655,-3000.0,0.00021,2]
[363272640,1748656252663,-151.0,0.00021,2]
[363272641,1748656252672,-231.430814,0.00021,2]
[363272642,1748656252681,-231.430814,0.00021,2]
[363272643,1748656252691,-151.0,0.00021,2]
[363272645,1748656252700,-151.0,0.00021,2]
[363272646,1748656252709,-233.309121,0.00021,2]
[363272648,1748656252718,-207.842734,0.00021,2]
[363272650,1748656252727,-207.842734,0.00021,2]
[363272652,1748656252736,-151.0,0.00021,2]
[363272654,1748656252745,-151.0,0.00021,2]
[363272656,1748656252753,-516.35,0.00021,14]
[363272658,1748656252762,-313.84589389,0.00021,2]
[363272660,1748656252773,-51.34861011,0.00021,2]
[363272662,1748656252782,-365.194504,0.00021,2]
[363272664,1748656252791,-156.935025,0.00021,2]
[363272666,1748656252800,-156.935025,0.00021,2]
[363272668,1748656252811,-206.181133,0.00021,2]
[363272670,1748656252820,-206.181133,0.00021,2]
[363272672,1748656252828,-151.0,0.00021,2]
[363272674,1748656252837,-367.193508,0.00021,2]
[363272676,1748656252846,-367.193508,0.00021,2]
[363272678,1748656252855,-151.0,0.00021,2]
[363272680,1748656252864,-151.0,0.00021,2]
[363272682,1748656252874,-538.945644,0.00021,2]
[363272684,1748656252883,-538.945644,0.00021,2]
[363272686,1748656252892,-151.0,0.00021,2]
[363272688,1748656252901,-219.106439,0.00021,2]
[363272690,1748656252910,-2748.309826,0.00021,2]
[363272691,1748656252919,-2748.309826,0.00021,2]
[363272694,1748656252929,-217.302792,0.00021,2]
[363272696,1748656252942,-217.302792,0.00021,2]
[363272698,1748656252951,-151.0,0.00021,2]
[363272700,1748656252960,-797.659667,0.00021,2]
[363272702,1748656252969,-797.659667,0.00021,2]
[363272704,1748656252980,-151.0,0.00021,2]
[363272706,1748656252988,-151.0,0.00021,2]
[363272708,1748656252997,-176.019814,0.00021,2]
[363272710,1748656253007,-176.019814,0.00021,2]
[363272711,1748656253018,-453.309988,0.00021,2]
[363272713,1748656253027,-453.309988,0.00021,2]
[363272715,1748656253036,-531.785592,0.00021,2]
[363272717,1748656253045,-531.785592,0.00021,2]
[363272719,1748656253055,-1161.758364,0.00021,2]
[363272721,1748656253064,-1161.758364,0.00021,2]
[363272723,1748656253074,-151.0,0.00021,2]
[363272725,1748656253083,-575.979099,0.00021,2]
[363272727,1748656253092,-575.979099,0.00021,2]
[363272729,1748656253101,-151.0,0.00021,2]
[363272731,1748656253111,-1256.43873,0.00021,2]
[363272733,1748656253120,-1256.43873,0.00021,2]
[363272735,1748656253130,-2802.639793,0.00021,2]
[363272737,1748656253139,-2802.639793,0.00021,2]
[363272739,1748656253148,-151.0,0.00021,2]
[363272741,1748656253158,-151.0,0.00021,2]
[363272743,1748656253169,-195.589229,0.00021,2]
[363272745,1748656253178,-195.589229,0.00021,2]
[363272747,1748656253188,-931.930376,0.00021,2]
[363272749,1748656253199,-931.930376,0.00021,2]
[363272751,1748656253208,-432.661826,0.00021,2]
[363272753,1748656253217,-842.5625,0.00021,10]
[363272755,1748656253227,-432.661826,0.00021,2]
[363272757,1748656253236,-151.0,0.00021,2]
[363272759,1748656253246,-12663.11115519,0.00021,10]
[363272761,1748656253256,-151.0,0.00021,2]
[363272763,1748656253265,-151.0,0.00021,2]
[363272765,1748656253274,-192.463237,0.00021,2]
[363272767,1748656253283,-192.463237,0.00021,2]
[363272769,1748656253292,-151.0,0.00021,2]
[363272771,1748656253301,-271.876585,0.00021,2]
[363272773,1748656253310,-271.876585,0.00021,2]
[363272775,1748656253318,-212.7380601,0.00021,10]
[363272777,1748656253327,-3000.0,0.0002101,2]
[363272779,1748656253336,-3000.0,0.0002102,2]
[363272781,1748656253345,-3000.0,0.0002103,2]
[363272783,1748656253355,-5000.0,0.00021031,2]
[363272785,1748656253363,-4031.54733515,0.00021038,4]
[363272786,1748656253373,-3000.0,0.0002104,2]
[363272788,1748656253383,-151.0,0.0002104,2]
[363272790,1748656253392,-3000.0,0.0002105,2]
[363272792,1748656253401,-3000.0,0.0002106,2]
[363272794,1748656253411,-582.39940817,0.00021065,2]
[363272796,1748656253420,-264.73534657,0.00021068,2]
[363272798,1748656253429,-1500.0,0.00021068,2]
[363272800,1748656253438,-1500.0,0.00021068,2]
[363272803,1748656253450,-505.86713011,0.00021068,2]
[363272804,1748656253459,-1297.49248903,0.00021068,2]
[363272806,1748656253469,-1500.0,0.00021068,2]
[363272808,1748656253478,-1500.0,0.00021068,2]
[363272810,1748656253487,-1001.32510502,0.00021068,2]
[363272812,1748656253496,-1224.53576733,0.00021068,2]
[363272814,1748656253505,-539.3844766,0.00021068,2]
[363272816,1748656253515,-1500.0,0.00021068,2]
[363272818,1748656253524,-1500.0,0.00021068,2]
[363272820,1748656253534,-1500.0,0.00021068,2]
[363272822,1748656253544,-1800.0,0.00021068,2]
[363272824,1748656253553,-1500.0,0.00021068,2]
[363272826,1748656253563,-609.34697371,0.00021068,2]
[363272828,1748656253572,-502.60008131,0.00021068,2]
[363272830,1748656253581,-1500.0,0.00021068,2]
[363272832,1748656253590,-1500.0,0.00021068,2]
[363272834,1748656253599,-1500.0,0.00021068,2]
[363272836,1748656253608,-1500.0,0.00021068,2]
[363272838,1748656253617,-3000.0,0.0002107,2]
[363272840,1748656253626,-3000.0,0.0002108,2]
[363272842,1748656253635,-184.83933637,0.00021082,2]
[363272844,1748656253644,-3000.0,0.0002109,2]
[363272846,1748656253653,-206.0,0.0002109,2]
[363272848,1748656253662,-432.24,0.00021094,2]
[363272850,1748656253671,-982.9,0.00021094,2]
[363272852,1748656253681,-430.0,0.00021094,2]
[363272854,1748656253691,-430.0,0.00021094,2]
[363272856,1748656253700,-2271.2,0.00021094,2]
[363272858,1748656253709,-804.95,0.00021094,2]
[363272860,1748656253719,-1744.19,0.00021095,2]
[363272862,1748656253728,-1425.95,0.00021095,2]
[363272864,1748656253738,-529.54,0.00021095,2]
[363272866,1748656253747,-612.2,0.00021095,2]
[363272868,1748656253756,-956.47,0.00021095,2]
[363272870,1748656253765,-862.38,0.00021095,2]
[363272872,1748656253774,-495.01,0.00021095,2]
[363272874,1748656253784,-430.0,0.00021095,2]
[363272875,1748656253794,-430.0,0.00021095,2]
[363272877,1748656253803,-430.0,0.00021095,2]
[363272879,1748656253812,-1528.02,0.00021095,2]
[363272881,1748656253822,-2554.19,0.00021095,2]
[363272883,1748656253831,-1699.58,0.00021095,2]
[363272885,1748656253840,-561.62,0.00021095,2]
[363272887,1748656253850,-948.43,0.00021095,2]
[363272889,1748656253859,-795.03,0.00021095,2]
[363272891,1748656253869,-658.45,0.00021095,2]
[363272893,1748656253878,-1192.93,0.00021095,2]
[363272895,1748656253887,-733.23,0.00021095,2]
[363272897,1748656253896,-962.85,0.00021095,2]
[363272899,1748656253905,-3000.0,0.000211,2]
[363272901,1748656253914,-3000.0,0.0002111,2]
[363272903,1748656253924,-160.0,0.00021116,12]
[363272905,1748656253935,-3000.0,0.0002112,2]
[363272907,1748656253946,-3000.0,0.0002113,2]
[363272909,1748656253955,-3000.0,0.0002114,2]
[363272911,1748656253964,-3000.0,0.0002115,2]
[363272913,1748656253974,-3000.0,0.0002116,2]
[363272915,1748656253984,-3000.0,0.0002117,2]
[363272917,1748656253992,-3000.0,0.0002118,2]
[363272919,1748656254001,-3000.0,0.0002119,2]
[363272921,1748656254011,-931.930376,0.0002119,2]
[363272923,1748656254023,-931.930376,0.0002119,2]
[363272925,1748656254033,-3000.0,0.000212,2]
[363272927,1748656254042,-3000.0,0.0002121,2]
[363272929,1748656254051,-3000.0,0.0002122,2]
[363272931,1748656254060,-3000.0,0.0002123,2]
[363272933,1748656254068,-3000.0,0.0002124,2]
[363272935,1748656254077,-3000.0,0.0002125,2]
[363272937,1748656254086,-8440.66,0.00021256,2]
[363272939,1748656254095,-3000.0,0.0002126,2]
[363272941,1748656254104,-3500.0,0.0002126,2]
[363272943,1748656254113,-3000.0,0.0002127,2]
[363272945,1748656254122,-5000.0,0.00021273,2]
[363272947,1748656254131,-4031.54733515,0.00021279,5]
[363272949,1748656254141,-206.0,0.0002128,2]
[363272951,1748656254150,-3000.0,0.0002128,2]
[363272953,1748656254159,-3000.0,0.0002129,2]
[363272955,1748656254168,-160.0,0.00021293,13]
[363272957,1748656254178,-3000.0,0.000213,2]
[363272959,1748656254187,-3000.0,0.0002131,2]
[363272961,1748656254199,-3000.0,0.0002132,2]
[363272963,1748656254208,-3000.0,0.0002133,2]
[363272965,1748656254217,-823.0,0.00021332,2]
[363272967,1748656254228,-3000.0,0.0002134,2]
[363272969,1748656254237,-151.0,0.00021349,2]
[363272971,1748656254246,-3000.0,0.0002135,2]
[363272973,1748656254255,-195.589229,0.0002135,2]
[363272975,1748656254264,-195.589229,0.0002135,2]
[363272977,1748656254273,-1400.0,0.00021356,2]
[363272979,1748656254282,-3000.0,0.0002136,2]
[363272981,1748656254291,-575.979099,0.0002136,2]
[363272983,1748656254299,-413.99818302,0.0002136,2]
[363273476,1748656259382,-161.98091598,0.0002136,2]
[363273478,1748656259392,-2802.639793,0.0002136,2]
[363273480,1748656259402,-2802.639793,0.0002136,2]
[363273482,1748656259411,-151.0,0.0002136,2]
[363273484,1748656259421,-432.661826,0.0002136,2]
[363273486,1748656259430,-432.661826,0.0002136,2]
[363273488,1748656259441,-151.0,0.0002136,2]
[363273490,1748656259451,-151.0,0.0002136,2]
[363273492,1748656259461,-151.153671,0.0002136,2]
[363273494,1748656259471,-192.463237,0.0002136,2]
[363273496,1748656259480,-192.463237,0.0002136,2]
[363273498,1748656259490,-151.0,0.0002136,2]
[363273500,1748656259500,-271.876585,0.0002136,2]
[363273502,1748656259510,-271.876585,0.0002136,2]
[363273504,1748656259522,-538.945644,0.00021364,2]
[363273506,1748656259532,-538.945644,0.00021364,2]
[363273508,1748656259545,-2748.309826,0.00021364,2]
[363273510,1748656259554,-2748.309826,0.00021364,2]
[363273512,1748656259563,-217.302792,0.00021364,2]
[363273514,1748656259572,-217.302792,0.00021364,2]
[363273516,1748656259581,-797.659667,0.00021364,2]
[363273518,1748656259591,-797.659667,0.00021364,2]
[363273520,1748656259600,-151.986522,0.00021364,2]
[363273522,1748656259609,-151.0,0.00021368,2]
[363273524,1748656259618,-176.019814,0.00021368,2]
[363273526,1748656259627,-176.019814,0.00021368,2]
[363273528,1748656259636,-453.309988,0.00021368,2]
[363273530,1748656259646,-453.309988,0.00021368,2]
[363273532,1748656259655,-1161.758364,0.00021368,2]
[363273534,1748656259664,-1161.758364,0.00021368,2]
[363273536,1748656259674,-151.0,0.00021368,2]
[363273538,1748656259683,-151.0,0.00021368,2]
[363273540,1748656259692,-1256.43873,0.00021368,2]
[363273542,1748656259703,-1256.43873,0.00021368,2]
[363273544,1748656259713,-151.0,0.00021368,2]
[363273546,1748656259721,-432.24,0.00021368,2]
[363273548,1748656259731,-982.9,0.00021368,2]
[363273550,1748656259740,-430.0,0.00021368,2]
[363273552,1748656259750,-430.0,0.00021368,2]
[363273554,1748656259759,-2271.2,0.00021368,2]
[363273556,1748656259768,-804.95,0.00021368,2]
[363273558,1748656259777,-365.194504,0.00021369,2]
[363273560,1748656259787,-365.194504,0.00021369,2]
[363273562,1748656259797,-206.181133,0.00021369,2]
[363273564,1748656259805,-206.181133,0.00021369,2]
[363273566,1748656259814,-287.970189,0.00021369,2]
[363273568,1748656259823,-367.193508,0.00021369,2]
[363273570,1748656259832,-367.193508,0.00021369,2]
[363273572,1748656259841,-152.165815,0.00021369,2]
[363273573,1748656259850,-151.0,0.00021369,2]
[363273575,1748656259860,-151.0,0.00021369,2]
[363273577,1748656259869,-151.0,0.00021369,2]
[363273579,1748656259879,-531.785592,0.00021369,2]
[363273581,1748656259889,-531.785592,0.00021369,2]
[363273583,1748656259899,-1744.19,0.00021369,2]
[363273585,1748656259908,-1425.95,0.00021369,2]
[363273588,1748656259917,-529.54,0.00021369,2]
[363273589,1748656259927,-612.2,0.00021369,2]
[363273591,1748656259938,-956.47,0.00021369,2]
[363273593,1748656259948,-862.38,0.00021369,2]
[363273595,1748656259957,-495.01,0.00021369,2]
[363273597,1748656259967,-430.0,0.00021369,2]
[363273599,1748656259976,-263.04413209,0.00021369,2]
[363273601,1748656259986,-430.0,0.00021369,2]
[363273603,1748656259995,-1528.02,0.00021369,2]
[363273605,1748656260004,-2554.19,0.00021369,2]
[363273607,1748656260015,-1699.58,0.00021369,2]
[363273609,1748656260025,-561.62,0.00021369,2]
[363273611,1748656260035,-948.43,0.00021369,2]
[363273613,1748656260045,-795.03,0.00021369,2]
[363273615,1748656260055,-658.45,0.00021369,2]
[363273617,1748656260064,-1192.93,0.00021369,2]
[363273619,1748656260074,-733.23,0.00021369,2]
[363273621,1748656260084,-962.85,0.00021369,2]
[363273624,1748656260094,-3000.0,0.0002137,2]
[363273626,1748656260103,-252.481315,0.0002137,2]
[363273628,1748656260114,-3000.0,0.0002138,2]
[363273629,1748656260123,-3000.0,0.0002139,2]
[363273632,1748656260132,-500.0,0.00021397,2]
[363273634,1748656260142,-3000.0,0.000214,2]
[363273636,1748656260152,-7031.50342506,0.000214,2]
[363273638,1748656260162,-3000.0,0.0002141,2]
[363273640,1748656260172,-207.842734,0.0002141,2]
[363273642,1748656260181,-207.842734,0.0002141,2]
[363273644,1748656260191,-3000.0,0.0002142,2]
[363273646,1748656260203,-282.804831,0.0002142,2]
[363273647,1748656260212,-156.935025,0.0002142,2]
[363273650,1748656260222,-156.935025,0.0002142,2]
[363273652,1748656260233,-1000.0,0.00021421,7]
[363273654,1748656260242,-3000.0,0.0002143,2]
[363273655,1748656260252,-231.430814,0.00021439,2]
[363273657,1748656260262,-231.430814,0.00021439,2]
[363273659,1748656260272,-4164.401316,0.0002144,2]
[363273661,1748656260282,-823.0,0.00021454,2]
[363273663,1748656260292,-160.0,0.0002147,14]
[363273666,1748656260302,-151.0,0.00021479,2]
[363273667,1748656260312,-296.554806,0.00021479,2]
[363273669,1748656260322,-151.0,0.00021492,2]
[363273671,1748656260331,-151.0,0.00021498,2]
[363273674,1748656260341,-2000.0,0.000215,2]
[363273676,1748656260352,-516.35,0.000215,14]
[363273678,1748656260361,-4031.54733515,0.00021521,5]
[363273679,1748656260371,-2499.99999999,0.000216,3]
[363273682,1748656260380,-2000.0,0.00021616,2]
[363273684,1748656260390,-970.411126,0.00021616,2]
[363273686,1748656260400,-2000.0,0.00021616,2]
[363273687,1748656260409,-1524.14944308,0.00021616,2]
[363273690,1748656260420,-1062.247666,0.00021616,2]
[363273692,1748656260430,-2000.0,0.00021616,2]
[363273694,1748656260440,-2000.0,0.00021616,2]
[363273696,1748656260452,-2400.0,0.00021616,2]
[363273698,1748656260462,-2000.0,0.00021616,2]
[363273700,1748656260472,-2000.0,0.00021616,2]
[363273702,1748656260482,-2000.0,0.00021616,2]
[363273704,1748656260492,-522.56915588,0.00021616,2]
[363273706,1748656260501,-2000.0,0.00021616,2]
[363273708,1748656260511,-206.0,0.0002163,2]
[363273710,1748656260521,-432.24,0.00021642,2]
[363273712,1748656260531,-982.9,0.00021642,2]
[363273714,1748656260540,-430.0,0.00021642,2]
[363273716,1748656260550,-430.0,0.00021642,2]
[363273718,1748656260559,-2271.2,0.00021642,2]
[363273720,1748656260569,-804.95,0.00021642,2]
[363273722,1748656260578,-1744.19,0.00021643,2]
[363273724,1748656260588,-1360.01802877,0.00021643,2]
[363273731,1748656260645,-641.0,0.000198,2]
[363273733,1748656260657,-641.0,0.00019827,2]
[363273735,1748656260666,-641.0,0.00019855,2]
[363273737,1748656260676,-641.0,0.00019882,2]
[363273739,1748656260686,-641.0,0.0001991,2]
[363273741,1748656260695,-641.0,0.00019937,2]
[363273742,1748656260707,-641.0,0.00019964,2]
[363273745,1748656260718,-641.0,0.00019992,2]
[363273747,1748656260728,-65.93197123,0.00021643,2]
[363273749,1748656260737,-529.54,0.00021643,2]
[363273751,1748656260747,-612.2,0.00021643,2]
[363273753,1748656260756,-956.47,0.00021643,2]
[363273755,1748656260765,-584.65492241,0.00021643,2]
[363273757,1748656260778,-277.72507759,0.00021643,2]
[363273759,1748656260787,-495.01,0.00021643,2]
[363273761,1748656260796,-430.0,0.00021643,2]
[363273763,1748656260806,-430.0,0.00021643,2]
[363273765,1748656260815,-1528.02,0.00021643,2]
[363273767,1748656260824,-2554.19,0.00021643,2]
[363273780,1748656260922,-1699.58,0.00021643,2]
[363273782,1748656260957,-561.62,0.00021643,2]
[363273784,1748656260967,-948.43,0.00021643,2]
[363273786,1748656260976,-795.03,0.00021643,2]
[363273788,1748656260986,-658.45,0.00021643,2]
[363273790,1748656260996,-1192.93,0.00021643,2]
[363273792,1748656261006,-733.23,0.00021643,2]
[363273794,1748656261016,-962.85,0.00021643,2]
[363273797,1748656261027,-160.0,0.00021647,15]
[363273799,1748656261037,-364.2452897,0.00021699,2]
[363273801,1748656261046,-301.87365748,0.00021699,2]
[363273803,1748656261063,-641.0,0.00020019,2]
[363273805,1748656261073,-62.37163222,0.00021699,2]
[363273807,1748656261082,-364.2452897,0.00021699,2]
[363273809,1748656261092,-364.2452897,0.00021699,2]
[363273811,1748656261101,-224.99761988,0.00021699,2]
[363273822,1748656261201,-139.24766982,0.00021699,2]
[363273824,1748656261210,-364.2452897,0.00021699,2]
[363273826,1748656261220,-364.2452897,0.00021699,2]
[363273828,1748656261229,-728.4905794,0.00021699,2]
[363273830,1748656261240,-364.2452897,0.00021699,2]
[363273832,1748656261259,-572.2963003,0.00021699,2]
[363273834,1748656261268,-176.414694,0.00021699,2]
[363273836,1748656261277,-189.2886489,0.00021699,2]
[363273838,1748656261287,-931.930376,0.00021699,2]
[363273840,1748656261296,-931.930378,0.00021699,2]
[363273842,1748656261304,-9606.08024748,0.000217,2]
[363273868,1748656261551,-430.0,0.00016438,2]
[363273870,1748656261562,-430.0,0.00016438,2]
[363273872,1748656261571,-430.0,0.00016712,2]
[363273874,1748656261580,-1190.62950527,0.00016985,2]
[363273893,1748656261752,-180.19049473,0.00016985,2]
[363273895,1748656261761,-1370.82,0.00017259,2]
[363273897,1748656261770,-111.98470627,0.0002,2]
[363273924,1748656262029,-301.36189995,0.00016438,2]
[363273950,1748656262275,-128.63810005,0.00016438,2]
[363273952,1748656262285,-439.37059374,0.00016438,2]
[363273954,1748656262294,-430.0,0.00016438,2]
[363273955,1748656262303,-532.68600831,0.00016438,2]
[363273956,1748656262312,-430.0,0.00016438,2]
[363273957,1748656262322,-430.0,0.00016712,2]
[363273958,1748656262331,-430.0,0.00016712,2]
[363273959,1748656262341,-430.0,0.00016986,2]
[363273960,1748656262350,-430.0,0.00016986,2]
[363273961,1748656262359,-430.0,0.0001726,2]
[363273962,1748656262368,-430.0,0.0001726,2]
[363273963,1748656262379,-1370.82,0.00017533,2]
[363273964,1748656262388,-430.0,0.00017534,2]
[363273965,1748656262397,-430.0,0.00017534,2]
[363273966,1748656262407,-1370.82,0.00017807,2]
[363273967,1748656262417,-430.0,0.00017808,2]
[363273968,1748656262427,-527.82,0.00017808,2]
[363273969,1748656262437,-1370.82,0.00018081,2]
[363273970,1748656262447,-313.48,0.00018082,2]
[363273971,1748656262459,-1370.82,0.00018355,2]
[363273972,1748656262469,-1370.82,0.00018629,2]
[363273973,1748656262479,-1370.82,0.00018903,2]
[363273974,1748656262488,-250.0,0.00019067,2]
[363273975,1748656262497,-1370.82,0.00019177,2]
[363273977,1748656262507,-2206.91,0.000192,2]
[363273979,1748656262517,-1370.82,0.00019451,2]
[363273981,1748656262527,-1370.82,0.00019725,2]
[363273983,1748656262536,-1370.82,0.00019999,2]
[363273985,1748656262546,-888.01529373,0.0002,2]
[363273986,1748656262556,-641.0,0.00020047,2]
[363273989,1748656262566,-641.0,0.00020074,2]
[363273991,1748656262576,-641.0,0.00020101,2]
[363273993,1748656262586,-641.0,0.00020129,2]
[363273995,1748656262596,-641.0,0.00020156,2]
[363273997,1748656262605,-641.0,0.00020184,2]
[363273999,1748656262614,-641.0,0.00020211,2]
[363274001,1748656262624,-641.0,0.00020238,2]
[363274003,1748656262633,-641.0,0.00020266,2]
[363274005,1748656262643,-1370.82,0.00020273,2]
[363274007,1748656262651,-641.0,0.00020293,2]
[363274008,1748656262661,-641.0,0.00020321,2]
[363274011,1748656262671,-641.0,0.00020348,2]
[363274013,1748656262680,-641.0,0.00020375,2]
[363274015,1748656262690,-641.0,0.00020403,2]
[363274017,1748656262699,-647.43614523,0.0002043,2]
[363274019,1748656262711,-572.2963003,0.00020877,2]
[363274021,1748656262721,-8903.55654064,0.000217,2]
[363274032,1748656262821,-1112.02,0.000217,2]
[363274088,1748656263373,-22730.56665,0.000217,2]
[363274095,1748656263435,-2453.20395,0.000217,2]
[363281537,1748656782876,-167.4645099,0.00016152,2]
[363281538,1748656782901,-300.0,0.00016437,2]
[363281539,1748656782924,-300.0,0.00016437,2]
[363281540,1748656782947,-430.0,0.00016438,2]
[363281541,1748656782970,-315.51077902,0.00016438,2]
[363281542,1748656782992,-430.0,0.00016438,2]
[363281543,1748656783015,-430.0,0.00016438,2]
[363281544,1748656783038,-430.0,0.00016438,2]
[363281545,1748656783061,-430.0,0.00016438,2]
[363281546,1748656783085,-430.0,0.00016438,2]
[363281547,1748656783116,-430.0,0.00016438,2]
[363281548,1748656783141,-430.0,0.00016438,2]
[363281549,1748656783164,-430.0,0.00016438,2]
[363281550,1748656783190,-1030.6,0.00016438,2]
[363281551,1748656783215,-554.18892036,0.00016438,2]
[363281552,1748656783239,-541.49,0.00016438,2]
[363281553,1748656783263,-430.0,0.00016438,2]
[363281554,1748656783288,-430.0,0.00016438,2]
[363281555,1748656783312,-385.03280059,0.00016438,2]
[363281556,1748656783335,-949.54,0.00016438,2]
[363281557,1748656783364,-430.0,0.00016438,2]
[363281558,1748656783388,-430.0,0.00016438,2]
[363281559,1748656783412,-430.0,0.00016438,2]
[363281560,1748656783435,-430.0,0.00016438,2]
[363281561,1748656783457,-430.0,0.00016438,2]
[363281562,1748656783481,-443.63,0.00016438,2]
[363281563,1748656783690,-430.0,0.00016438,2]
[363281564,1748656783714,-430.0,0.00016438,2]
[363281565,1748656783737,-430.0,0.00016438,2]
[363281566,1748656783760,-457.62,0.00016438,2]
[363281567,1748656783784,-430.0,0.00016438,2]
[363281568,1748656783807,-430.0,0.00016438,2]
[363281569,1748656783831,-430.0,0.00016438,2]
[363281570,1748656783856,-430.0,0.00016438,2]
[363281571,1748656783879,-500.0,0.00016438,2]